bitfinex/quotes_ETHUSD_20251220
["timestamp","ask_amount","ask_price","bid_price","bid_amount"]
[1766222991558,0.002,2988.4,2987.9,0.14415502]
[1766222991759,0.002,2988.4,2988.1,0.5985]
[1766222991958,0.002,2988.4,2988.1,2.5756]
[1766222997770,0.44,2988.6,2988.3,2.5756]
[1766222998546,0.002,2988.4,2988.3,2.5756]
[1766222998768,0.002,2988.4,2988.2,9.57206057]
[1766222999878,0.002,2988.4,2988.2,12.14766057]
[1766223000367,0.44,2988.6,2988.3,1.9771]
[1766223000667,0.44,2988.6,2988.3,2.5756]
[1766223000974,0.002,2989.4,2988.9,1.9771]
[1766223001172,0.002,2989.4,2989.1,1.9771]
[1766223001173,0.442,2989.4,2989.1,1.9771]
[1766223001376,0.442,2989.4,2989.2,9.57206057]
[1766223001578,0.17486949,2989.7,2989.3,2.5756]
[1766223001739,0.442,2990.0,2989.7,2.5756]
[1766223002072,0.45004722,2990.3,2989.7,0.37216068]
[1766223002289,0.89204722,2990.3,2989.7,0.37216068]
[1766223002877,0.39383892,2989.9,2989.7,0.37216068]
[1766223004845,0.39383892,2989.9,2989.6,0.5985]
[1766223008780,0.39583892,2989.9,2989.6,0.5985]
[1766223009090,0.39583892,2989.9,2989.6,2.4825]
[1766223010853,0.39583892,2989.9,2989.7,9.5629102]
[1766223011052,0.39583892,2989.9,2989.7,1.884]
[1766223011275,0.002,2990.1,2989.7,2.4933]
[1766223011461,0.01204722,2990.1,2989.7,2.4933]
[1766223011976,0.01204722,2990.1,2989.6,0.39583892]
[1766223012186,0.01004722,2990.2,2989.6,0.39583892]
[1766223012392,0.01004722,2990.2,2989.7,1.884]
[1766223012685,0.01004722,2990.2,2989.8,2.4933]
[1766223013397,2.58894722,2990.0,2989.6,0.39583892]
[1766223013552,0.25889472,2989.9,2989.3,0.44]
[1766223013881,2.58894722,2990.0,2989.5,1.00532655]
[1766223015154,1.9969,2989.5,2988.4,9.56198462]
[1766223015478,0.582,2989.4,2989.0,0.6093]
[1766223015794,1.00544111,2989.5,2988.9,0.44]
[1766223015954,1.00544111,2989.5,2989.1,2.4933]
[1766223016491,1.00544111,2989.5,2988.9,0.44]
[1766223017657,1.00544111,2989.5,2989.0,1.884]
[1766223017878,1.00544111,2989.5,2989.2,2.4933]
[1766223019300,0.01004722,2989.8,2989.3,1.884]
[1766223019486,0.582,2990.0,2989.3,2.4933]
[1766223019673,0.002,2990.1,2989.5,2.4933]
[1766223019878,0.59404722,2990.1,2989.6,1.884]
[1766223020061,0.002,2990.1,2989.8,1.884]
[1766223020267,0.002,2990.1,2989.8,0.6093]
[1766223020467,0.002,2990.1,2989.9,1.884]
[1766223021710,0.002,2990.1,2989.8,0.6093]
[1766223022008,0.002,2990.1,2989.5,0.6134]
[1766223022680,0.5957,2990.0,2989.5,1.0534]
[1766223023200,2.27020502,2990.1,2989.5,1.0534]
[1766223023500,0.002,2989.9,2989.5,1.0534]
[1766223023800,0.002,2989.9,2989.5,3.1194]
[1766223024398,0.002,2989.9,2989.5,1.0534]
[1766223024602,0.002,2989.9,2989.6,2.066]
[1766223025194,0.002,2989.9,2989.6,2.6794]
[1766223035416,0.2856205,2989.9,2989.6,2.6794]
[1766223035988,0.2856205,2989.9,2989.6,2.066]
[1766223036486,0.2856205,2989.9,2989.5,0.441]
[1766223037012,0.2856205,2989.9,2989.5,2.4492]
[1766223037813,0.2856205,2989.9,2989.5,3.0861]
[1766223050727,0.2856205,2989.9,2989.5,0.001]
[1766223050928,0.2856205,2989.9,2989.5,0.441]
[1766223051533,0.2856205,2989.9,2989.5,3.0861]
[1766223057557,0.2856205,2989.9,2989.5,1.0779]
[1766223057753,0.002,2989.9,2989.6,2.6451]
[1766223066554,0.002,2989.9,2989.5,0.441]
[1766223066755,0.002,2989.9,2989.5,2.5876]
[1766223066958,0.002,2989.9,2989.5,3.2258]
[1766223069978,0.002,2989.9,2989.5,0.441]
[1766223070274,0.002,2989.9,2989.6,2.7848]
[1766223071599,0.002,2989.9,2989.6,2.1466]
[1766223072694,0.002,2989.9,2989.5,1.0792]
[1766223073277,0.002,2989.9,2989.5,3.2258]
[1766223085513,0.002,2989.9,2989.6,2.7611]
[1766223087235,0.002,2989.9,2989.7,2.1365]
[1766223087537,0.002,2989.9,2989.7,2.7611]
[1766223087736,0.002,2989.9,2989.8,2.1365]
[1766223088140,0.002,2990.1,2989.9,0.6246]
[1766223088330,0.44,2990.3,2989.9,2.7611]
[1766223088530,0.88368291,2990.3,2989.9,2.7611]
[1766223088737,0.1748362,2990.4,2990.0,0.6246]
[1766223089037,0.1748362,2990.4,2990.1,2.1365]
[1766223089440,2.8167,2990.6,2990.1,2.1365]
[1766223090256,0.6115,2990.5,2990.1,2.1365]
[1766223090708,2.21524722,2990.6,2990.1,2.1365]
[1766223091036,0.32667472,2990.5,2990.1,2.7611]
[1766223091528,1.0515,2990.7,2990.2,2.7611]
[1766223091836,3.2567,2990.7,2990.2,2.7611]
[1766223092935,0.002,2990.5,2990.2,2.7611]
[1766223093351,0.002,2990.5,2990.2,2.1365]
[1766223093648,0.002,2990.5,2990.0,2.7611]
[1766223093849,2.8187,2990.5,2990.0,2.7611]
[1766223094059,0.002,2990.5,2989.9,0.44]
[1766223094353,0.6486,2990.3,2989.9,0.44]
[1766223094535,2.8269,2990.2,2989.9,0.44]
[1766223095048,0.002,2990.5,2989.5,0.001]
[1766223095049,2.1783,2990.4,2989.5,0.001]
[1766223095251,0.21803,2990.3,2989.6,0.44]
[1766223095638,0.002,2990.5,2989.6,0.44]
[1766223095955,0.6486,2990.3,2989.6,2.5542]
[1766223096157,2.8269,2990.1,2989.6,2.5542]
[1766223096542,2.8269,2990.1,2989.6,3.1654]
[1766223100165,2.8289,2990.1,2989.6,3.1654]
[1766223102095,2.8289,2990.1,2989.7,0.44]
[1766223103193,2.8289,2990.1,2989.6,2.7254]
[1766223103492,2.8289,2990.1,2989.7,0.44]
[1766223105562,2.8289,2990.1,2989.7,2.5542]
[1766223105768,0.002,2990.1,2989.7,3.1654]
[1766223106596,0.6506,2990.5,2989.7,3.1654]
[1766223107683,0.6506,2990.5,2989.7,2.7254]
[1766223107888,0.6506,2990.5,2989.8,0.44]
[1766223108570,2.1783,2990.4,2989.8,0.44]
[1766223108793,0.002,2990.1,2989.8,0.44]
[1766223110488,2.8269,2990.0,2989.8,0.44]
[1766223112219,2.8269,2990.0,2989.5,3.73153793]
[1766223112421,2.8269,2990.0,2989.7,0.44]
[1766223114535,0.6486,2990.0,2989.7,0.44]
[1766223114834,0.002,2990.1,2989.7,0.44]
[1766223115061,0.002,2990.5,2990.1,2.7254]
[1766223115206,0.002,2990.5,2990.1,12.72803327]
[1766223116237,0.002,2990.5,2990.2,2.7254]
[1766223116406,0.002,2990.5,2990.2,2.1142]
[1766223117729,0.002,2990.3,2990.2,2.1142]
[1766223118430,0.002,2990.5,2990.2,2.1142]
[1766223118632,0.002,2990.5,2990.2,0.6112]
[1766223118832,2.1783,2990.7,2990.1,9.99730612]
[1766223118833,0.6486,2990.8,2990.3,2.7254]
[1766223119837,2.35310922,2990.9,2990.0,10.56233292]
[1766223119838,2.1783,2990.7,2990.0,10.56233292]
[1766223120032,0.6486,2990.7,2990.2,0.44]
[1766223120236,2.8269,2990.7,2990.2,0.44]
[1766223120933,0.6486,2990.5,2990.2,0.44]
[1766223121138,2.8269,2990.5,2990.2,0.44]
[1766223122030,0.6486,2990.5,2990.2,0.44]
[1766223124516,0.6486,2990.5,2990.1,2.5542]
[1766223124841,0.6486,2990.5,2990.1,2.1142]
[1766223125047,0.6486,2990.5,2990.1,2.5542]
[1766223125744,0.6506,2990.5,2990.1,2.5542]
[1766223126444,0.002,2990.5,2990.1,2.5542]
[1766223126610,0.002,2990.5,2990.0,1.0050268]
[1766223126943,0.002,2990.5,2990.2,2.8679]
[1766223130456,0.002,2990.5,2990.3,9.55730612]
[1766223130661,2.8757,2990.8,2990.4,0.03344034]
[1766223130953,2.8757,2990.8,2990.3,12.42520612]
[1766223131255,2.8757,2990.8,2990.3,2.8679]
[1766223132346,2.8757,2991.0,2990.3,2.8679]
[1766223132525,2.8757,2990.7,2990.3,2.8679]
[1766223133853,2.8757,2990.7,2990.3,2.2343]
[1766223134059,0.28777,2990.9,2990.1,3.87290997]
[1766223134250,0.6613,2990.6,2990.2,0.44]
[1766223138558,0.6613,2990.6,2990.2,2.6743]
[1766223138862,2.2144,2990.7,2990.2,3.3079]
[1766223140368,2.2144,2990.7,2990.2,2.8679]
[1766223140666,2.2144,2990.7,2990.2,3.3079]
[1766223142869,2.8766,2990.7,2990.2,3.3079]
[1766223143669,2.8786,2990.7,2990.2,3.3079]
[1766223151766,2.8786,2990.7,2990.2,1.0736]
[1766223152069,2.8786,2990.7,2990.3,2.2867]
[1766223152648,2.8786,2990.7,2990.2,1.0736]
[1766223154581,0.6435,2990.6,2990.2,0.44]
[1766223154884,0.6435,2990.6,2989.6,3.34585656]
[1766223154885,0.002,2990.7,2989.6,0.001]
[1766223155044,0.6435,2990.4,2989.7,0.44]
[1766223155247,2.3597,2990.1,2989.9,0.6435]
[1766223155550,2.3597,2990.1,2989.8,0.44]
[1766223155972,0.6435,2990.2,2989.8,0.44]
[1766223156171,3.0032,2990.4,2989.8,3.2549]
[1766223156477,3.0032,2990.4,2989.9,2.8149]
[1766223156651,0.6435,2990.4,2989.9,2.8149]
[1766223156845,3.0032,2990.6,2989.9,2.8149]
[1766223157045,3.0032,2990.5,2989.9,2.8149]
[1766223157276,0.6455,2990.7,2990.0,0.6255]
[1766223157469,3.0052,2990.7,2990.1,2.8149]
[1766223157664,0.002,2990.7,2990.1,2.8149]
[1766223157857,3.0032,2990.6,2989.9,0.44]
[1766223158059,0.002,2990.7,2989.9,3.2549]
[1766223158287,3.0032,2990.6,2989.9,3.2549]
[1766223158673,0.6435,2990.3,2989.8,1.00508068]
[1766223158877,3.0032,2990.6,2989.8,1.00508068]
[1766223159177,3.0032,2990.5,2989.6,0.001]
[1766223159378,2.3597,2990.1,2989.6,0.001]
[1766223159571,3.0032,2989.9,2989.6,0.001]
[1766223160363,0.89337636,2990.4,2989.8,0.001]
[1766223160364,3.0032,2990.3,2989.8,0.001]
[1766223160565,0.6435,2990.2,2989.8,0.001]
[1766223160888,2.3597,2990.2,2989.8,0.001]
[1766223161180,3.0032,2990.0,2989.8,0.001]
[1766223161860,0.38965764,2990.3,2989.6,0.001]
[1766223162065,0.88,2990.4,2989.4,0.44]
[1766223162066,0.6435,2989.8,2989.4,0.44]
[1766223162266,0.6435,2989.6,2989.4,0.44]
[1766223167687,2.3597,2989.7,2989.4,0.44]
[1766223168057,3.0032,2989.7,2989.4,0.44]
[1766223168488,3.0032,2989.7,2989.4,0.441]
[1766223169892,3.0032,2989.7,2989.4,0.001]
[1766223170083,3.0032,2989.7,2989.4,0.441]
[1766223171108,0.6435,2989.6,2989.4,0.441]
[1766223171912,0.6435,2989.6,2989.4,0.001]
[1766223172261,1.00522212,2990.3,2989.2,1.00508068]
[1766223172262,0.01337636,2990.2,2989.2,1.00508068]
[1766223172595,2.3597,2989.5,2989.1,0.001]
[1766223172891,3.0032,2989.4,2989.1,0.001]
[1766223173461,2.3597,2989.8,2989.2,0.6255]
[1766223173665,0.6435,2989.9,2989.3,0.6255]
[1766223173868,0.6435,2989.9,2989.6,2.1894]
[1766223174797,2.3597,2989.8,2989.2,2.8149]
[1766223175001,2.3597,2989.8,2989.3,2.1894]
[1766223175499,3.0032,2989.8,2989.3,2.1894]
[1766223175800,0.002,2989.4,2989.3,2.1894]
[1766223176092,3.0032,2989.8,2989.3,2.1894]
[1766223176502,0.44,2990.1,2989.1,1.00626928]
[1766223176866,2.3597,2990.0,2989.1,1.00626928]
[1766223177096,2.3597,2989.6,2989.1,1.00626928]
[1766223177400,3.0032,2989.5,2989.1,1.00626928]
[1766223180208,3.0032,2989.9,2989.1,1.00626928]
[1766223180507,2.3597,2989.7,2989.1,1.44626928]
[1766223180708,2.3597,2989.5,2989.1,1.44626928]
[1766223180875,0.6435,2989.4,2989.1,1.44626928]
[1766223181911,2.3597,2989.5,2989.1,4.26116928]
[1766223182202,0.44,2990.1,2989.4,2.8149]
[1766223182414,3.0032,2990.0,2989.4,2.8149]
[1766223182576,2.3597,2990.0,2989.4,2.8149]
[1766223182772,0.44,2990.1,2989.4,2.8149]
[1766223182773,3.0032,2989.9,2989.4,2.8149]
[1766223183196,0.44,2990.1,2989.4,0.6255]
[1766223183396,3.4432,2990.1,2989.5,0.6255]
[1766223183601,0.34432,2990.0,2989.5,2.8149]
[1766223183911,3.34752,2990.0,2989.5,2.8149]
[1766223185692,3.34952,2990.0,2989.5,2.8149]
[1766223186614,2.8824,2989.9,2989.5,2.8149]
[1766223186810,0.34632,2990.0,2989.3,3.2327]
[1766223187014,0.6759,2989.8,2989.3,0.44]
[1766223187217,2.8824,2989.6,2989.2,1.44529286]
[1766223190613,2.8824,2989.9,2989.4,9.56138326]
[1766223191226,2.8824,2989.9,2989.3,3.2327]
[1766223191717,2.2065,2989.9,2989.3,3.2327]
[1766223191915,2.8824,2989.8,2989.5,1.00519518]
[1766223192105,2.2065,2989.8,2989.5,1.00519518]
[1766223192307,0.002,2990.0,2989.5,3.79789518]
[1766223192824,2.8844,2990.0,2989.5,3.79789518]
[1766223194796,0.002,2989.9,2989.5,3.79789518]
[1766223200512,0.002,2989.9,2989.5,2.7927]
[1766223200701,2.8844,2989.9,2989.5,2.7927]
[1766223200902,2.8844,2989.9,2989.5,3.79789518]
[1766223202331,2.8844,2989.9,2989.5,3.16429518]
[1766223202830,2.8844,2989.9,2989.5,1.00519518]
[1766223207438,2.8566,2989.8,2989.5,1.00519518]
[1766223210352,2.2157,2989.6,2989.1,2.8052]
[1766223210535,0.6409,2989.4,2989.1,0.001]
[1766223211150,0.6409,2989.4,2989.0,1.00636024]
[1766223211151,1e-08,2989.4,2989.0,1.00636024]
[1766223211507,1e-08,2989.4,2988.7,10.00226634]
[1766223211508,1e-08,2989.4,2988.6,0.6475]
[1766223211707,1e-08,2989.4,2988.6,0.001]
[1766223212318,1e-08,2989.4,2988.6,1.00647481]
[1766223212541,2.2157,2989.4,2988.6,0.001]
[1766223212742,0.22157,2989.3,2988.6,0.001]
[1766223212915,2.2157,2989.2,2988.6,0.001]
[1766223213320,2.2157,2989.1,2988.6,0.6475]
[1766223213520,2.3832,2989.1,2988.6,0.6475]
[1766223214448,9.56426634,2989.9,2988.6,0.6475]
[1766223214449,0.002,2989.9,2989.5,2.2996]
[1766223214618,0.002,2990.0,2989.8,9.56226634]
[1766223214823,0.002,2990.0,2989.6,0.65354929]
[1766223214824,0.002,2990.0,2989.6,12.48196634]
[1766223215024,0.44,2990.2,2990.0,0.6201]
[1766223215343,0.44,2990.2,2990.0,2.9197]
[1766223215742,0.44,2990.2,2989.8,9.56226634]
[1766223215932,2.622,2990.2,2989.8,9.56226634]
[1766223217847,2.182,2990.1,2989.8,9.56226634]
[1766223218340,2.182,2989.9,2989.5,0.44]
[1766223218523,2.184,2989.9,2989.5,0.44]
[1766223222143,0.002,2989.9,2989.6,2.9197]
[1766223222347,0.002,2989.9,2989.5,1.44519518]
[1766223222546,0.002,2989.9,2989.6,0.6201]
[1766223222853,0.002,2989.9,2989.6,2.9197]
[1766223223221,0.002,2989.9,2989.7,0.6201]
[1766223225049,0.002,2989.9,2989.6,11.86186634]
[1766223225419,0.002,2989.9,2989.6,12.48196634]
[1766223227151,0.002,2989.9,2989.6,9.56226634]
[1766223227548,2.184,2989.9,2989.5,0.44]
[1766223227749,2.2818,2989.9,2989.5,0.44]
[1766223229553,2.2818,2989.9,2989.6,9.56226634]
[1766223229945,2.2818,2989.9,2989.6,9.56195716]
[1766223230141,2.184,2989.9,2989.6,9.56195716]
[1766223230342,2.184,2989.9,2989.6,6.52605716]
[1766223230656,0.002,2989.9,2989.6,1.09455716]
[1766223231648,0.002,2989.9,2989.5,1.00519855]
[1766223233424,0.002,2989.9,2989.6,9.56195716]
[1766223235262,0.44,2990.2,2989.8,12.48165716]
[1766223235627,0.002,2989.9,2989.8,12.48165716]
[1766223235847,0.44,2990.2,2989.8,12.48165716]
[1766223236358,0.44,2990.2,2989.8,2.9197]
[1766223238356,0.44,2990.2,2989.7,9.56195716]
[1766223239656,0.44,2990.2,2989.5,1.00619855]
[1766223239860,0.44,2990.2,2989.6,9.56195716]
[1766223240866,0.44,2990.2,2989.8,9.56195716]
[1766223242144,0.44,2990.2,2989.6,10.56714897]
[1766223243065,0.442,2990.2,2989.6,10.56714897]
[1766223249370,0.442,2990.2,2989.7,2.6796]
[1766223252768,0.442,2990.2,2989.6,10.56714897]
[1766223254452,0.442,2990.2,2989.6,13.24674897]
[1766223257371,0.442,2990.2,2989.6,3.68479181]
[1766223259239,0.442,2990.2,2989.6,1.00519181]
[1766223259350,0.442,2990.2,2989.5,0.001]
[1766223262486,0.442,2990.2,2989.5,2.7053]
[1766223263415,0.442,2990.2,2989.5,2.3391]
[1766223263615,0.442,2990.2,2989.6,2.7043]
[1766223268293,0.442,2990.2,2989.5,0.001]
[1766223272387,0.442,2990.2,2989.5,2.7053]
[1766223275472,0.442,2990.2,2989.6,0.355]
[1766223275816,0.442,2990.2,2989.8,2.7251]
[1766223277320,0.442,2990.2,2989.6,2.7251]
[1766223278778,0.442,2990.2,2989.7,2.7251]
[1766223279802,0.442,2990.2,2989.5,2.7261]
[1766223279995,0.442,2990.2,2989.5,0.001]
[1766223286486,0.01337636,2990.1,2989.4,0.001]
[1766223286818,0.01337636,2990.1,2989.2,10.0010075]
[1766223287516,0.442,2990.2,2989.2,10.0010075]
[1766223287817,0.01337636,2990.1,2989.2,10.0010075]
[1766223293021,0.01337636,2990.1,2989.2,9.5610075]
[1766223295119,0.01337636,2990.1,2989.2,4.6795075]
[1766223295421,0.01337636,2990.1,2989.2,7.9910075]
[1766223298895,0.01537636,2990.1,2989.2,7.9910075]
[1766223300932,0.002,2990.1,2989.5,9.5610075]
[1766223301435,0.17483654,2990.4,2989.8,9.5610075]
[1766223301597,0.17483654,2990.4,2989.6,12.2861075]
[1766223301796,1.05883654,2990.4,2989.6,12.2861075]
[1766223301999,1.05883654,2990.4,2989.6,9.5610075]
[1766223302199,0.01337636,2990.3,2989.5,10.00108287]
[1766223302397,0.01337636,2990.3,2989.5,0.44]
[1766223304607,0.01337636,2990.3,2989.5,10.00108287]
[1766223307039,0.01537636,2990.3,2989.5,10.00108287]
[1766223307240,0.01537636,2990.3,2989.5,9.56108287]
[1766223308138,0.01537636,2990.3,2989.4,0.44]
[1766223310149,0.01537636,2990.3,2989.3,9.56108287]
[1766223310150,0.01337636,2990.1,2989.3,9.56108287]
[1766223310307,0.01337636,2990.1,2989.4,0.44]
[1766223313941,0.01337636,2990.1,2989.3,9.56108287]
[1766223314245,0.01337636,2990.1,2989.4,0.44]
[1766223315519,0.01537636,2990.1,2989.4,0.44]
[1766223316153,0.01537636,2990.1,2989.1,2.6946]
[1766223316347,0.01537636,2990.1,2989.3,0.44]
[1766223318248,0.01337636,2989.9,2989.1,0.001]
[1766223318452,0.01337636,2989.9,2989.2,0.44]
[1766223318852,0.01337636,2989.9,2989.2,0.065]
[1766223319023,0.01337636,2989.9,2989.0,9.56108287]
[1766223319521,0.01337636,2989.9,2989.3,9.56369158]
[1766223319945,0.01337636,2989.9,2989.5,9.56369158]
[1766223320350,0.01537636,2990.1,2989.5,9.56369158]
[1766223322252,0.01537636,2990.1,2989.7,9.56369158]
[1766223324157,0.01537636,2990.1,2989.5,9.56369158]
[1766223325162,0.35167308,2990.3,2989.9,9.56369158]
[1766223325333,0.002,2990.3,2989.9,9.56369158]
[1766223326656,0.17483654,2990.4,2990.1,9.56369158]
[1766223327039,0.17483654,2990.4,2990.1,9.18869158]
[1766223327359,0.17483654,2990.4,2990.0,8.81369158]
[1766223330767,0.17683654,2990.4,2990.0,8.81369158]
[1766223335971,0.17683654,2990.4,2989.8,9.56369158]
[1766223336440,0.17683654,2990.4,2989.9,2.7284]
[1766223337171,0.17683654,2990.4,2989.6,12.29209158]
[1766223338483,0.17683654,2990.4,2989.6,2.7284]
[1766223339052,0.17683654,2990.4,2989.5,9.56169473]
[1766223339484,0.17683654,2990.4,2989.4,2.7284]
[1766223339688,1.2404273,2990.4,2989.4,3.1684]
[1766223339981,0.01337636,2990.3,2989.4,2.7284]
[1766223344372,0.01337636,2990.3,2989.5,9.56169473]
[1766223346819,0.01337636,2990.3,2989.4,0.001]
[1766223348088,0.3804258,2990.3,2989.4,0.001]
[1766223354903,0.3824258,2990.3,2989.4,0.001]
[1766223360293,1.01209571,2990.2,2989.4,0.001]
[1766223360506,0.01337636,2990.1,2989.0,0.441]
[1766223361023,0.18808401,2990.1,2989.0,0.441]
[1766223361240,0.01337636,2989.9,2989.0,3.1694]
[1766223361434,0.01337636,2989.9,2989.0,0.001]
[1766223361625,1.00150711,2989.8,2989.0,0.001]
[1766223361830,0.01337636,2989.9,2989.0,0.001]
[1766223362719,0.01337636,2989.9,2989.1,9.56169473]
[1766223363046,0.01337636,2989.9,2989.1,12.29009473]
[1766223363246,0.01337636,2989.9,2989.1,9.56169473]
[1766223363450,0.44,2990.0,2989.3,12.29009473]
[1766223364292,0.44,2990.0,2989.3,9.56169473]
[1766223367911,0.44,2990.0,2989.5,9.56169473]
[1766223368116,0.44,2990.0,2989.4,2.8115]
[1766223368609,0.44,2990.0,2989.3,9.56169473]
[1766223369015,0.44,2990.0,2989.5,0.3489]
[1766223369427,0.44,2990.0,2989.3,9.91059473]
[1766223372336,0.44,2990.0,2989.3,9.91159473]
[1766223372715,0.442,2990.0,2989.3,9.91159473]
[1766223375139,0.442,2990.0,2989.4,9.56258904]
[1766223380845,0.442,2990.0,2989.4,12.38468904]
[1766223381339,0.442,2990.0,2989.4,9.56258904]
[1766223381513,0.442,2990.0,2989.3,0.001]
[1766223383746,0.442,2990.0,2989.3,2.8231]
[1766223384446,0.442,2990.0,2989.4,2.8221]
[1766223384623,0.442,2990.0,2989.5,0.0334504]
[1766223385246,0.442,2990.0,2989.4,2.8221]
[1766223387741,0.442,2990.0,2989.4,2.467]
[1766223387952,0.442,2990.0,2989.5,0.3551]
[1766223388252,0.442,2990.0,2989.3,0.001]
[1766223389770,0.442,2990.0,2989.4,2.8221]
[1766223390119,0.442,2990.0,2989.3,0.001]
[1766223390847,0.442,2990.0,2989.4,2.467]
[1766223391051,0.442,2990.0,2989.4,2.8221]
[1766223395155,0.442,2990.0,2989.4,12.02947691]
[1766223395346,0.442,2990.0,2989.6,2.7991]
[1766223396642,0.442,2990.0,2989.7,0.3655]
[1766223396851,0.442,2990.0,2989.7,2.7991]
[1766223397041,0.442,2990.0,2989.8,0.3655]
[1766223397227,0.002,2990.3,2989.8,0.3655]
[1766223397430,0.002,2990.3,2989.8,2.4336]
[1766223397756,0.002,2990.3,2989.8,2.7991]
[1766223399951,0.002,2990.3,2989.9,2.7991]
[1766223400353,1.0052356,2990.2,2989.9,2.7991]
[1766223400727,1.0052356,2990.2,2989.5,2.7991]
[1766223400934,1.0052356,2990.2,2989.6,0.3655]
[1766223401257,1.0052356,2990.2,2989.7,2.7991]
[1766223401452,1.0052356,2990.2,2989.9,2.4336]
[1766223401658,0.002,2990.3,2989.9,2.4336]
[1766223401957,1.00717834,2990.3,2990.0,2.7991]
[1766223402141,0.002,2990.3,2990.0,2.7991]
[1766223404250,0.002,2990.6,2990.2,2.4336]
[1766223404434,1.00707394,2990.7,2990.5,2.7991]
[1766223404756,0.002,2990.7,2990.5,2.7991]
[1766223406773,1.00501334,2991.0,2990.6,2.7991]
[1766223407132,0.002,2991.1,2990.7,0.3655]
[1766223407338,0.17660748,2991.4,2990.2,9.56247691]
[1766223407339,0.44,2991.8,2991.0,2.7991]
[1766223407553,1.01821802,2991.7,2991.0,2.7991]
[1766223407763,1.01821802,2991.7,2990.8,2.4336]
[1766223408032,1.43632246,2991.6,2990.8,3.2411]
[1766223408235,1.43632246,2991.6,2990.8,2.7991]
[1766223410855,1.01821802,2991.7,2990.8,2.7991]
[1766223412076,0.01337636,2991.7,2990.8,2.7991]
[1766223412653,1.00486185,2991.6,2990.8,2.7991]
[1766223414186,1.00486185,2991.6,2990.9,2.7991]
[1766223415746,1.00686185,2991.6,2990.9,2.7991]
[1766223415970,0.002,2991.6,2990.9,2.7991]
[1766223416367,0.002,2991.6,2990.9,0.82049619]
[1766223416575,0.002,2991.6,2991.1,2.7991]
[1766223417981,0.002,2991.6,2991.0,0.44]
[1766223422780,0.002,2991.6,2990.8,3.2401]
[1766223422954,0.002,2991.6,2990.8,4.24490464]
[1766223423155,0.002,2991.6,2990.8,1.00580464]
[1766223424191,0.002,2991.6,2990.8,3.80490464]
[1766223424364,0.002,2991.6,2990.8,4.2293951]
[1766223425063,0.002,2991.6,2990.8,1.4302951]
[1766223425263,0.002,2991.6,2990.8,1.00580464]
[1766223425483,0.002,2991.6,2990.8,0.001]
[1766223425694,0.002,2991.6,2990.9,1.00480464]
[1766223426586,9.55688775,2991.6,2990.9,1.00480464]
[1766223426889,0.002,2991.6,2990.9,0.55280464]
[1766223427051,0.002,2991.6,2990.8,0.001]
[1766223427253,9.55488775,2991.4,2990.4,1.00483493]
[1766223427448,1.41020277,2991.3,2990.2,3.2853]
[1766223427884,1.00498304,2991.2,2990.2,3.2853]
[1766223428304,1.00498304,2991.2,2990.2,2.8453]
[1766223428607,1.00498304,2991.2,2990.3,2.8453]
[1766223428966,1.00498304,2991.2,2990.2,0.44]
[1766223428967,1.00498304,2991.2,2990.5,2.8453]
[1766223431927,1.00498304,2991.2,2990.6,2.8453]
[1766223432112,1.00498304,2991.2,2990.7,2.8453]
[1766223433682,1.00498304,2991.2,2990.8,2.8453]
[1766223434087,0.002,2991.6,2990.9,2.8453]
[1766223434288,1.00482483,2991.5,2990.9,2.8453]
[1766223436000,1.38522648,2991.5,2990.9,2.8453]
[1766223436517,1.38522648,2991.5,2991.0,0.343]
[1766223436809,1.38522648,2991.5,2991.0,2.8453]
[1766223437010,1.00482483,2991.5,2991.0,2.8453]
[1766223438395,1.00482483,2991.5,2990.6,1.444808]
[1766223438585,1.00482483,2991.5,2990.8,0.343]
[1766223438908,1.00482483,2991.5,2990.8,2.8453]
[1766223440709,1.00482483,2991.5,2990.8,3.2853]
[1766223443720,1.00482483,2991.5,2990.8,3.2863]
[1766223444019,2.10500355,2991.5,2990.8,3.2863]
[1766223444221,2.10500355,2991.5,2990.8,0.441]
[1766223444519,10.65514107,2991.5,2990.5,2.5636]
[1766223444683,10.65514107,2991.5,2990.6,2.9193]
[1766223444889,2.07185974,2991.4,2990.7,0.3567]
[1766223445082,2.07185974,2991.4,2990.7,2.9193]
[1766223445282,0.002,2991.6,2990.8,2.9193]
[1766223445784,1.00486858,2991.3,2990.8,2.9193]
[1766223445986,1.00486858,2991.3,2990.8,2.5626]
[1766223446310,1.00486858,2991.3,2991.0,0.3567]
[1766223446711,1.00486858,2991.3,2990.9,2.5626]
[1766223447088,1.00486858,2991.3,2990.6,2.9193]
[1766223447913,10.56119687,2991.3,2990.5,0.441]
[1766223448219,1.00486858,2991.3,2990.6,0.3567]
[1766223448420,1.00486858,2991.3,2990.6,2.9193]
[1766223449089,1.00486858,2991.3,2990.6,2.99911585]
[1766223449295,1.00486858,2991.3,2990.9,0.3567]
[1766223449592,1.00486858,2991.3,2990.9,2.9193]
[1766223450121,1.00486858,2991.3,2990.5,0.441]
[1766223450420,1.00486858,2991.3,2990.7,2.9193]
[1766223450622,1.00486858,2991.3,2990.8,0.001]
[1766223455816,1.00486858,2991.3,2990.5,0.001]
[1766223455817,9.55632829,2991.0,2990.5,0.001]
[1766223456019,9.55632829,2990.6,2989.7,2.8654]
[1766223456221,9.55632829,2990.6,2989.7,0.44]
[1766223456406,9.55632829,2990.4,2989.6,0.001]